bitfinex-derivatives/quotes_BTCF0:USTF0_20260118
["timestamp","ask_amount","ask_price","bid_price","bid_amount"]
[1768715088432,0.0506361,95258.0,95244.0,0.010503]
[1768715088632,0.0506361,95258.0,95245.0,0.02990312]
[1768715088824,0.0506361,95258.0,95244.0,0.010503]
[1768715089025,0.0506361,95258.0,95245.0,0.02990316]
[1768715089226,0.01482727,95260.0,95248.0,0.10494]
[1768715089529,0.0506361,95262.0,95250.0,0.10494]
[1768715089733,0.06663837,95261.0,95250.0,0.10494]
[1768715090033,0.0506361,95260.0,95250.0,0.10494]
[1768715090835,0.06663837,95260.0,95250.0,0.10494]
[1768715091522,0.0506361,95259.0,95245.0,0.0282836]
[1768715091722,0.0506361,95257.0,95250.0,0.10494]
[1768715092425,0.0506361,95257.0,95245.0,0.0282836]
[1768715092624,0.01476697,95261.0,95247.0,0.10494]
[1768715092831,0.01476697,95261.0,95241.0,0.01653992]
[1768715092832,0.01280937,95264.0,95250.0,0.10494]
[1768715093331,0.00230937,95264.0,95251.0,0.010502]
[1768715093837,0.01715502,95264.0,95251.0,0.010502]
[1768715097334,0.01715502,95264.0,95250.0,0.10494]
[1768715100339,0.01715502,95264.0,95251.0,0.010502]
[1768715101043,0.0113577,95269.0,95255.0,0.04534739]
[1768715101044,0.0008577,95269.0,95255.0,0.04534739]
[1768715101231,0.0008577,95269.0,95259.0,0.10494]
[1768715102345,0.0008577,95269.0,95260.0,0.010501]
[1768715102838,0.0008577,95269.0,95260.0,0.05603732]
[1768715103041,0.09456,95277.0,95260.0,0.05603732]
[1768715103533,0.09456,95277.0,95262.0,0.0105]
[1768715103740,0.10947889,95277.0,95262.0,0.0105]
[1768715104842,0.11997789,95277.0,95260.0,0.04553632]
[1768715105038,0.01491889,95277.0,95267.0,0.10494]
[1768715105242,0.09686889,95284.0,95267.0,0.15097546]
[1768715105443,0.09686889,95284.0,95270.0,0.10494]
[1768715106141,0.01280689,95284.0,95270.0,0.10494]
[1768715106348,0.00230889,95284.0,95270.0,0.10494]
[1768715106538,0.01280689,95284.0,95267.0,0.04603546]
[1768715106740,0.01280689,95284.0,95270.0,0.10494]
[1768715107035,0.02787899,95284.0,95270.0,0.10494]
[1768715109146,0.010498,95283.0,95270.0,0.10494]
[1768715111343,0.01738099,95284.0,95270.0,0.10494]
[1768715111645,0.010498,95283.0,95270.0,0.10494]
[1768715111836,0.01738099,95284.0,95270.0,0.10494]
[1768715113239,0.01738099,95284.0,95272.0,0.04562557]
[1768715113645,0.01738099,95284.0,95270.0,0.10494]
[1768715114644,0.01738099,95284.0,95270.0,0.04578819]
[1768715114843,0.01738099,95284.0,95270.0,0.15072819]
[1768715115938,0.01738099,95284.0,95267.0,0.06171943]
[1768715116138,0.01738099,95284.0,95268.0,0.04517951]
[1768715116344,0.01738099,95284.0,95270.0,0.10494]
[1768715116345,0.02787899,95284.0,95270.0,0.10494]
[1768715117044,0.010498,95282.0,95270.0,0.10494]
[1768715119137,0.010497,95293.0,95276.0,0.02555153]
[1768715119344,0.02573851,95293.0,95282.0,0.02555153]
[1768715119743,0.02573851,95293.0,95280.0,0.10494]
[1768715120256,0.052814,95301.0,95281.0,0.01653992]
[1768715120435,0.10494,95300.0,95281.0,0.01653992]
[1768715120635,0.052814,95301.0,95281.0,0.01653992]
[1768715120845,0.010497,95298.0,95281.0,0.02703792]
[1768715122240,0.010496,95300.0,95281.0,0.01653992]
[1768715122549,0.010496,95300.0,95285.0,0.04265724]
[1768715122750,0.115436,95300.0,95285.0,0.04265724]
[1768715123046,0.010497,95298.0,95285.0,0.04265724]
[1768715123354,0.07132456,95298.0,95278.0,0.02822288]
[1768715123648,0.05389588,95297.0,95280.0,0.10494]
[1768715123947,0.01742868,95298.0,95280.0,0.10494]
[1768715124251,0.010497,95296.0,95280.0,0.10494]
[1768715125049,0.010497,95296.0,95281.0,0.02323756]
[1768715125550,0.11990405,95300.0,95282.0,0.02323756]
[1768715126456,0.010497,95298.0,95282.0,0.02323756]
[1768715126953,0.010497,95299.0,95282.0,0.02323756]
[1768715128150,0.11990405,95300.0,95282.0,0.02323756]
[1768715129841,0.010497,95296.0,95282.0,0.02323756]
[1768715131544,0.010497,95299.0,95283.0,0.010498]
[1768715131850,0.010497,95299.0,95282.0,0.02323756]
[1768715132953,0.010497,95297.0,95282.0,0.02323756]
[1768715133653,0.010497,95297.0,95284.0,0.02514591]
[1768715133858,0.010497,95295.0,95284.0,0.02514591]
[1768715136362,0.010497,95297.0,95284.0,0.02514591]
[1768715138453,0.01496405,95300.0,95282.0,0.02822288]
[1768715138756,0.05532875,95301.0,95282.0,0.02822288]
[1768715138943,0.01469573,95301.0,95291.0,0.02554226]
[1768715139142,0.010496,95302.0,95290.0,0.01645669]
[1768715139345,0.010496,95302.0,95287.0,0.02554226]
[1768715139756,0.0023084,95304.0,95287.0,0.02554226]
[1768715139956,0.0128044,95304.0,95287.0,0.02554226]
[1768715142052,0.010496,95301.0,95287.0,0.02554226]
[1768715142245,0.0128044,95304.0,95287.0,0.02554226]
[1768715142448,0.02764103,95304.0,95287.0,0.02554226]
[1768715142951,0.02764103,95304.0,95288.0,0.02610059]
[1768715143159,0.01714503,95304.0,95289.0,0.02610059]
[1768715143755,0.01714503,95304.0,95288.0,0.01645669]
[1768715144351,0.01714503,95304.0,95289.0,0.010498]
[1768715144552,0.01714503,95304.0,95288.0,0.01645669]
[1768715144963,0.01714503,95304.0,95289.0,0.02537651]
[1768715145565,0.010496,95303.0,95289.0,0.02537651]
[1768715146362,0.01714503,95304.0,95289.0,0.02537651]
[1768715146757,0.02764103,95304.0,95288.0,0.01645669]
[1768715147259,0.00230829,95309.0,95293.0,0.01645669]
[1768715147469,0.00230829,95309.0,95297.0,0.00850472]
[1768715147655,0.00230829,95309.0,95297.0,0.0367276]
[1768715147857,0.00230829,95309.0,95297.0,0.0472246]
[1768715148057,0.01561957,95315.0,95298.0,0.02822288]
[1768715148262,0.01561957,95315.0,95297.0,0.00850472]
[1768715148263,0.07309011,95316.0,95305.0,0.02822288]
[1768715148475,0.07309011,95316.0,95304.0,0.02822288]
[1768715148853,0.01776136,95316.0,95304.0,0.02822288]
[1768715149054,0.010494,95325.0,95306.0,0.00721715]
[1768715149258,0.01776136,95341.0,95320.0,0.00490904]
[1768715149467,0.03367452,95341.0,95321.0,0.00490904]
[1768715149659,0.010492,95340.0,95321.0,0.00490904]
[1768715149865,0.01591316,95341.0,95327.0,0.00503842]
[1768715150066,0.010492,95342.0,95329.0,0.00503842]
[1768715150256,0.010492,95342.0,95322.0,8.8e-07]
[1768715150257,0.05532875,95340.0,95322.0,8.8e-07]
[1768715150462,0.05532875,95327.0,95315.0,0.03782194]
[1768715150765,0.05532875,95327.0,95307.0,0.00503842]
[1768715150766,0.05532875,95310.0,95287.0,0.00666956]
[1768715150974,0.05532875,95310.0,95283.0,0.00666956]
[1768715150975,0.010497,95297.0,95283.0,0.00666956]
[1768715151155,0.010497,95297.0,95281.0,0.09452]
[1768715151455,0.01776136,95299.0,95281.0,0.09452]
[1768715151662,0.05532875,95302.0,95281.0,0.09452]
[1768715151663,0.05532875,95302.0,95282.0,0.00666956]
[1768715152463,0.010497,95298.0,95282.0,0.00666956]
[1768715153370,0.010496,95302.0,95284.0,0.03334245]
[1768715154870,0.01776136,95305.0,95284.0,0.03334245]
[1768715155066,0.09452,95307.0,95287.0,0.03467389]
[1768715155274,0.09452,95307.0,95288.0,0.03467389]
[1768715155862,0.06242373,95306.0,95287.0,0.01717541]
[1768715156559,0.010496,95302.0,95287.0,0.01717541]
[1768715158976,0.010497,95299.0,95284.0,0.03448173]
[1768715161273,0.06242373,95305.0,95284.0,0.03448173]
[1768715161274,0.010496,95303.0,95284.0,0.03448173]
[1768715161661,0.010496,95303.0,95286.0,0.03305385]
[1768715162675,0.010496,95303.0,95287.0,0.02886644]
[1768715162876,0.010496,95303.0,95288.0,0.02886644]
[1768715163076,0.010496,95303.0,95289.0,0.02886644]
[1768715163279,0.010496,95303.0,95290.0,0.02886644]
[1768715163578,0.010496,95303.0,95291.0,0.02886644]
[1768715163772,0.010496,95303.0,95292.0,0.02886644]
[1768715163974,0.010496,95303.0,95293.0,0.02886644]
[1768715164273,0.010496,95303.0,95286.0,0.03305385]
[1768715164479,0.010496,95303.0,95287.0,0.02886855]
[1768715164676,0.010496,95301.0,95288.0,0.02886855]
[1768715164876,0.010496,95301.0,95289.0,0.02886855]
[1768715165070,0.010496,95301.0,95290.0,0.02886855]
[1768715165276,0.010496,95301.0,95291.0,0.02886855]
[1768715165469,0.010496,95301.0,95292.0,0.02886855]
[1768715165780,0.010496,95301.0,95293.0,0.02886855]
[1768715166076,0.010496,95301.0,95286.0,0.03305385]
[1768715166276,0.010496,95301.0,95287.0,0.02887152]
[1768715166572,0.010496,95301.0,95288.0,0.02887152]
[1768715166775,0.010496,95301.0,95289.0,0.02887152]
[1768715166976,0.010496,95301.0,95290.0,0.02887152]
[1768715167170,0.010496,95301.0,95286.0,0.03305385]
[1768715167171,0.010496,95301.0,95291.0,0.02887152]
[1768715167364,0.010496,95301.0,95292.0,0.02887152]
[1768715167568,0.010496,95301.0,95293.0,0.02887152]
[1768715167778,0.010496,95301.0,95286.0,0.03305385]
[1768715168074,0.010496,95301.0,95287.0,0.02887352]
[1768715168277,0.010496,95301.0,95288.0,0.02887352]
[1768715168579,0.010497,95299.0,95289.0,0.02887352]
[1768715168780,0.010497,95299.0,95286.0,0.03305385]
[1768715168781,0.010497,95299.0,95290.0,0.02887352]
[1768715169073,0.010497,95299.0,95291.0,0.02887352]
[1768715169272,0.010497,95299.0,95292.0,0.02887352]
[1768715169480,0.010496,95302.0,95293.0,0.02887352]
[1768715169680,0.010496,95302.0,95286.0,0.03305385]
[1768715169866,0.010496,95300.0,95287.0,0.02887722]
[1768715170070,0.010496,95300.0,95288.0,0.02887722]
[1768715170274,0.010496,95300.0,95289.0,0.02887722]
[1768715170475,0.010496,95300.0,95290.0,0.02887722]
[1768715170671,0.010496,95300.0,95291.0,0.02887722]
[1768715170876,0.010496,95300.0,95292.0,0.02887722]
[1768715171067,0.010496,95300.0,95293.0,0.02887722]
[1768715171275,0.010496,95300.0,95286.0,0.03305385]
[1768715171477,0.010496,95300.0,95287.0,0.02888133]
[1768715171677,0.010496,95300.0,95288.0,0.02888133]
[1768715171881,0.010496,95300.0,95289.0,0.02888133]
[1768715172185,0.010496,95300.0,95290.0,0.02888133]
[1768715172387,0.010496,95300.0,95291.0,0.02888133]
[1768715172575,0.010496,95300.0,95292.0,0.02888133]
[1768715172775,0.010496,95300.0,95293.0,0.02888133]
[1768715172980,0.0177226,95306.0,95286.0,0.03305385]
[1768715173180,0.0177226,95306.0,95287.0,0.02888371]
[1768715173380,0.0177226,95306.0,95288.0,0.02888371]
[1768715173580,0.0177226,95306.0,95289.0,0.02888371]
[1768715173882,0.010496,95302.0,95290.0,0.02888371]
[1768715174084,0.010496,95302.0,95291.0,0.02888371]
[1768715174381,0.010496,95302.0,95292.0,0.02888371]
[1768715174581,0.010496,95302.0,95293.0,0.02888371]
[1768715174783,0.010496,95302.0,95294.0,0.02888371]
[1768715174984,0.010496,95302.0,95286.0,0.03305385]
[1768715179479,0.010496,95302.0,95286.0,0.08947432]
[1768715179879,0.010496,95302.0,95287.0,0.02918244]
[1768715180080,0.010497,95299.0,95287.0,0.02918244]
[1768715180482,0.010497,95299.0,95290.0,0.05642047]
[1768715180685,0.010497,95299.0,95294.0,0.0377135]
[1768715181287,0.010497,95299.0,95295.0,0.0377135]
[1768715181586,0.010497,95299.0,95295.0,5e-07]
[1768715181887,0.010497,95296.0,95285.0,0.01717541]
[1768715186288,0.010497,95296.0,95285.0,0.05019045]
[1768715188093,0.010497,95297.0,95285.0,0.05019045]
[1768715188682,0.010497,95297.0,95286.0,0.03252187]
[1768715191690,0.0081886,95297.0,95286.0,0.03252187]
[1768715195193,0.05906457,95289.0,95276.0,7.6e-07]
[1768715195493,0.010498,95283.0,95269.0,0.00230926]
[1768715197491,0.10488354,95280.0,95269.0,0.00230926]
[1768715199395,0.0789315,95279.0,95269.0,0.00230926]
[1768715199897,0.05906457,95283.0,95269.0,0.00230926]
[1768715200193,0.05906457,95289.0,95269.0,0.00230926]
[1768715200497,0.010498,95285.0,95269.0,0.00230926]
[1768715201590,0.06956257,95288.0,95269.0,0.01280926]
[1768715201900,0.06956257,95288.0,95270.0,0.10488354]
[1768715202602,0.09452,95289.0,95273.0,0.04255091]
[1768715203508,0.09452,95289.0,95274.0,0.010499]
[1768715204805,0.10488354,95290.0,95274.0,0.010499]
[1768715205299,0.010497,95291.0,95274.0,0.010499]
[1768715205503,0.10488354,95290.0,95274.0,0.010499]
[1768715207400,0.05906457,95296.0,95280.0,0.10488354]
[1768715207603,0.09452,95295.0,95280.0,0.10488354]
[1768715207906,0.15358457,95295.0,95275.0,0.04250467]
[1768715208400,0.010497,95293.0,95275.0,0.04250467]
[1768715209608,0.010497,95293.0,95276.0,0.010499]
[1768715210309,0.010497,95293.0,95277.0,0.02824124]
[1768715210604,0.010497,95293.0,95278.0,0.0419504]
[1768715211906,0.010497,95293.0,95276.0,0.03874024]
[1768715214313,0.010497,95293.0,95276.0,0.0793464]
[1768715214915,0.010497,95293.0,95280.0,0.10488354]
[1768715218613,0.09452,95295.0,95274.0,0.02086281]
[1768715218614,0.09452,95295.0,95281.0,0.010498]
[1768715218817,0.09452,95295.0,95284.0,0.010498]
[1768715220318,0.09452,95295.0,95280.0,0.10488354]
[1768715220319,0.06395772,95294.0,95279.0,0.02824124]
[1768715220615,0.08495479,95286.0,95268.0,0.05650425]
[1768715220815,0.06395772,95285.0,95268.0,0.05650425]
[1768715221018,0.02099707,95285.0,95267.0,0.05650425]
[1768715221317,0.06395772,95281.0,95270.0,0.09452]
[1768715221518,0.02099707,95282.0,95270.0,0.09452]
[1768715223823,0.10488354,95280.0,95270.0,0.09452]
[1768715224123,0.02099707,95282.0,95270.0,0.09452]
[1768715225323,0.10488354,95280.0,95270.0,0.15102425]
[1768715227127,0.10488354,95280.0,95270.0,0.09452]
[1768715227325,0.10488354,95280.0,95270.0,0.15102425]
[1768715229228,0.02099707,95282.0,95270.0,0.15102425]
[1768715229418,0.10488354,95280.0,95270.0,0.15102425]
[1768715234622,0.010498,95284.0,95270.0,0.15102425]
[1768715235125,0.09545279,95284.0,95270.0,0.15102425]
[1768715235326,0.06395772,95283.0,95270.0,0.09452]
[1768715236221,0.06395772,95278.0,95270.0,0.09452]
[1768715236416,0.06395772,95278.0,95269.0,0.00230926]
[1768715236917,0.02099707,95279.0,95269.0,0.00230926]
[1768715237116,0.10488354,95280.0,95269.0,0.00230926]
[1768715237724,0.06395772,95282.0,95269.0,0.00230926]
[1768715237919,0.10488354,95280.0,95269.0,0.00230926]
[1768715240419,0.11538254,95280.0,95269.0,0.00230926]
[1768715240725,0.010499,95277.0,95269.0,0.00230926]
[1768715240914,0.16884126,95280.0,95269.0,0.00230926]
[1768715240915,0.08495479,95278.0,95269.0,2.6e-07]
[1768715241118,0.06395772,95275.0,95269.0,2.6e-07]
[1768715241519,0.06395772,95273.0,95269.0,2.6e-07]
[1768715241718,0.08495479,95273.0,95269.0,2.6e-07]
[1768715242121,0.07349889,95272.0,95264.0,6.3e-07]
[1768715242326,0.0105,95267.0,95264.0,6.3e-07]
[1768715245928,0.07349989,95270.0,95264.0,6.3e-07]
[1768715246130,0.02099707,95273.0,95264.0,6.3e-07]
[1768715246131,0.03149607,95273.0,95264.0,6.3e-07]
[1768715247036,0.09449596,95273.0,95264.0,6.3e-07]
[1768715248635,0.0105,95271.0,95264.0,6.3e-07]
[1768715250431,0.08399696,95273.0,95264.0,6.3e-07]
[1768715250940,0.06299989,95272.0,95264.0,6.3e-07]
[1768715252144,0.07349989,95271.0,95264.0,6.3e-07]
[1768715260753,0.03054027,95269.0,95264.0,6.3e-07]
[1768715260957,0.0105,95267.0,95264.0,6.3e-07]
[1768715262148,0.03054027,95267.0,95264.0,6.3e-07]
[1768715262754,0.09456,95286.0,95264.0,6.3e-07]
[1768715262953,0.01601368,95284.0,95264.0,6.3e-07]
[1768715263153,0.01601368,95283.0,95264.0,6.3e-07]
[1768715263359,0.01601368,95281.0,95264.0,6.3e-07]
[1768715263657,0.01601368,95282.0,95264.0,6.3e-07]
[1768715263953,0.010499,95280.0,95264.0,6.3e-07]
[1768715264258,0.01601368,95280.0,95264.0,6.3e-07]
[1768715264460,0.010499,95281.0,95265.0,0.0105]
[1768715264761,0.01601368,95281.0,95265.0,0.0105]
[1768715264957,0.01601368,95279.0,95265.0,0.0105]
[1768715265158,0.01601368,95281.0,95265.0,0.0105]
[1768715265358,0.01601368,95280.0,95265.0,0.0105]
[1768715265857,0.07395854,95284.0,95268.0,0.0105]
[1768715265858,0.06346054,95284.0,95268.0,0.0105]
[1768715268659,0.02004027,95285.0,95266.0,0.04628629]
[1768715269053,0.01601697,95286.0,95267.0,0.0461001]
[1768715269252,0.06346054,95288.0,95267.0,0.0461001]
[1768715269451,0.01601368,95287.0,95267.0,0.0461001]
[1768715269653,0.01601368,95287.0,95271.0,0.0461001]
[1768715269654,0.03211786,95287.0,95271.0,0.0461001]
[1768715269857,0.01610418,95287.0,95273.0,0.0461001]
[1768715270065,0.00230878,95289.0,95273.0,0.0461001]
[1768715271563,0.00230878,95289.0,95275.0,0.010499]
[1768715271968,0.06346054,95293.0,95278.0,0.010499]
[1768715272165,0.08012427,95293.0,95278.0,0.010499]
[1768715272354,0.01601368,95292.0,95278.0,0.010499]
[1768715272559,0.01601368,95291.0,95278.0,0.010499]
[1768715273261,0.01601368,95290.0,95278.0,0.010499]
[1768715273461,0.08012427,95293.0,95278.0,0.010499]
[1768715273661,0.01601368,95291.0,95278.0,0.010499]
[1768715274064,0.01601368,95290.0,95278.0,0.010499]
[1768715274272,0.01601368,95291.0,95278.0,0.010499]
[1768715274669,0.01601368,95290.0,95278.0,0.010499]
[1768715274869,0.01666373,95293.0,95276.0,0.04524682]
[1768715275059,0.09456,95295.0,95277.0,0.04506435]
[1768715275263,0.11057368,95295.0,95277.0,0.04506435]
[1768715275465,0.01601368,95294.0,95276.0,0.02120519]
[1768715275765,0.17355224,95295.0,95276.0,0.02120519]
[1768715276368,0.15753856,95295.0,95276.0,0.02120519]
[1768715276568,0.01601368,95294.0,95276.0,0.02120519]
[1768715276764,0.07899224,95294.0,95276.0,0.02120519]
[1768715276964,0.07899224,95294.0,95275.0,0.010499]
[1768715277168,0.06297856,95294.0,95275.0,0.010499]
[1768715277872,0.08003634,95294.0,95275.0,0.010499]
[1768715278063,0.09605002,95294.0,95275.0,0.010499]
[1768715278263,0.07899224,95293.0,95275.0,0.010499]
[1768715278463,0.06297856,95293.0,95275.0,0.010499]
[1768715279476,0.07347556,95293.0,95275.0,0.010499]
[1768715280474,0.08948924,95293.0,95275.0,0.010499]
[1768715280872,0.07347556,95293.0,95275.0,0.010499]
[1768715281076,0.06297856,95292.0,95275.0,0.010499]
[1768715281877,0.07899224,95292.0,95275.0,0.010499]
[1768715283980,0.06297856,95292.0,95275.0,0.010499]
[1768715284174,0.01601368,95291.0,95275.0,0.010499]
[1768715284480,0.07899224,95291.0,95275.0,0.010499]
[1768715285482,0.01601368,95290.0,95275.0,0.010499]
[1768715285882,0.06297856,95291.0,95275.0,0.010499]
[1768715286182,0.01601368,95290.0,95275.0,0.010499]
[1768715287082,0.06297856,95291.0,95275.0,0.010499]
[1768715287083,0.01601368,95289.0,95275.0,0.010499]
[1768715287287,0.01601368,95290.0,95275.0,0.010499]
[1768715287685,0.01601368,95289.0,95275.0,0.010499]
[1768715287883,0.01601368,95290.0,95274.0,0.105059]
[1768715288074,0.06297856,95289.0,95274.0,0.09456]
[1768715288277,0.06297856,95288.0,95274.0,0.09456]
[1768715288678,0.07899224,95288.0,95274.0,0.09456]
[1768715288879,0.06297856,95288.0,95274.0,0.09456]
[1768715289791,0.06297856,95288.0,95274.0,0.105059]
[1768715291286,0.07899224,95288.0,95274.0,0.105059]
[1768715292887,0.01601368,95287.0,95274.0,0.105059]
[1768715293583,0.06297856,95288.0,95274.0,0.105059]
[1768715293784,0.01601368,95287.0,95274.0,0.105059]
[1768715294182,0.01601368,95286.0,95274.0,0.105059]
[1768715294381,0.01601368,95287.0,95274.0,0.105059]
[1768715294785,0.01601368,95286.0,95274.0,0.105059]
[1768715295291,0.06297856,95288.0,95274.0,0.105059]
[1768715295481,0.01601368,95286.0,95274.0,0.105059]
[1768715296091,0.01601368,95285.0,95274.0,0.105059]
[1768715296390,0.01601368,95286.0,95274.0,0.105059]
[1768715296991,0.01601368,95285.0,95274.0,0.105059]
[1768715297296,0.01601368,95286.0,95274.0,0.09456]
[1768715297494,0.01601368,95288.0,95274.0,0.09456]
[1768715297691,0.01601368,95287.0,95274.0,0.09456]
[1768715297893,0.01601368,95286.0,95274.0,0.09456]
[1768715298194,0.01601368,95287.0,95274.0,0.09456]
[1768715298686,0.07347556,95290.0,95274.0,0.09456]
[1768715298895,0.01601368,95286.0,95274.0,0.09456]
[1768715299386,0.01601368,95284.0,95274.0,0.09456]
[1768715299586,0.01601368,95286.0,95274.0,0.09456]
[1768715300085,0.01601368,95284.0,95274.0,0.09456]
[1768715300395,0.01601368,95286.0,95274.0,0.09456]
[1768715300789,0.01601368,95284.0,95274.0,0.09456]
[1768715300982,0.01601368,95286.0,95274.0,0.09456]
[1768715301688,0.01601368,95283.0,95274.0,0.09456]
[1768715301888,0.01601368,95285.0,95274.0,0.09456]
[1768715302387,0.01601368,95283.0,95274.0,0.09456]
[1768715302594,0.07347556,95290.0,95274.0,0.09456]
[1768715303796,0.06297856,95290.0,95274.0,0.09456]
[1768715305400,0.010498,95289.0,95274.0,0.09456]
[1768715306399,0.010497,95292.0,95274.0,0.13179158]
[1768715308001,0.010497,95292.0,95274.0,0.14229058]
[1768715311899,0.01705778,95294.0,95276.0,0.010499]
[1768715312105,0.06812539,95295.0,95276.0,0.010499]
[1768715312401,0.010497,95293.0,95276.0,0.010499]
[1768715313909,0.010497,95293.0,95276.0,0.04634799]
[1768715314108,0.01675167,95294.0,95276.0,0.03584899]
[1768715314309,0.01941445,95295.0,95276.0,0.03584899]
[1768715315409,0.010497,95294.0,95276.0,0.04634799]
[1768715317412,0.02715396,95294.0,95276.0,0.04634799]
[1768715321330,0.02715396,95294.0,95280.0,0.10484182]
[1768715324422,0.010497,95292.0,95280.0,0.10484182]
[1768715328029,0.01665696,95294.0,95280.0,0.10484182]
[1768715328330,0.08014075,95295.0,95280.0,0.10484182]
[1768715329432,0.010497,95291.0,95280.0,0.10484182]
[1768715332934,0.01719139,95294.0,95280.0,0.10484182]
[1768715333133,0.08014075,95295.0,95280.0,0.10484182]
[1768715334436,0.010497,95290.0,95280.0,0.10484182]
[1768715338634,0.010498,95288.0,95276.0,0.13040899]
[1768715338841,0.010498,95288.0,95278.0,0.10484182]
[1768715346349,0.16261131,95290.0,95270.0,0.02931973]
[1768715346539,0.05776949,95288.0,95270.0,0.10484182]
[1768715346738,0.05776949,95287.0,95270.0,0.10484182]
[1768715346941,0.010499,95280.0,95269.0,0.09686926]
[1768715347141,0.010499,95278.0,95270.0,0.10484182]
[1768715347342,0.010499,95278.0,95269.0,0.09686926]
[1768715349150,0.010498,95281.0,95269.0,0.09686926]
[1768715349750,0.010498,95281.0,95270.0,0.10484182]
[1768715350153,0.010498,95281.0,95269.0,0.09686926]
[1768715350341,0.010499,95279.0,95270.0,0.10484182]
[1768715351150,0.010499,95279.0,95269.0,0.09686926]
[1768715351450,0.010499,95279.0,95269.0,0.20171108]
[1768715351946,0.010499,95277.0,95269.0,0.00230926]
[1768715352151,0.010499,95275.0,95269.0,0.00230926]
[1768715353152,0.010499,95275.0,95269.0,2.6e-07]
[1768715354150,0.010499,95279.0,95269.0,2.6e-07]
[1768715358651,0.05776949,95287.0,95269.0,2.6e-07]
[1768715358844,0.10484182,95280.0,95269.0,2.6e-07]
[1768715359159,0.010499,95279.0,95269.0,2.6e-07]
[1768715365967,0.010499,95277.0,95269.0,2.6e-07]
[1768715368166,0.10484182,95280.0,95269.0,2.6e-07]
[1768715368167,0.0551364,95274.0,95269.0,2.6e-07]
[1768715368466,0.010499,95275.0,95269.0,2.6e-07]
[1768715372269,0.0551364,95278.0,95269.0,2.6e-07]
[1768715374561,0.010499,95275.0,95269.0,2.6e-07]
[1768715375673,0.01856175,95272.0,95269.0,2.6e-07]
[1768715376081,0.07043819,95273.0,95269.0,2.6e-07]
[1768715376287,0.010499,95273.0,95269.0,2.6e-07]
[1768715376984,0.01856175,95277.0,95269.0,2.6e-07]
[1768715376985,0.010499,95277.0,95269.0,2.6e-07]
[1768715378288,0.010499,95278.0,95269.0,2.6e-07]
[1768715384595,0.010499,95276.0,95269.0,2.6e-07]
[1768715388291,0.07043819,95276.0,95269.0,2.6e-07]
[1768715391690,0.05993919,95276.0,95269.0,2.6e-07]
[1768715393496,0.07905745,95276.0,95269.0,2.6e-07]
[1768715396793,0.010499,95275.0,95269.0,2.6e-07]
[1768715397303,0.07366313,95272.0,95269.0,2.6e-07]
[1768715397601,0.07366313,95271.0,95269.0,2.6e-07]
[1768715399302,0.010499,95273.0,95269.0,2.6e-07]
[1768715399492,0.02961726,95273.0,95269.0,2.6e-07]
[1768715399999,0.01911826,95272.0,95269.0,2.6e-07]
[1768715401893,0.05454487,95276.0,95269.0,2.6e-07]
[1768715402092,0.07366313,95276.0,95269.0,2.6e-07]
[1768715402501,0.01911826,95275.0,95269.0,2.6e-07]
[1768715402903,0.05454487,95274.0,95269.0,2.6e-07]
[1768715403104,0.01911826,95273.0,95269.0,2.6e-07]
[1768715403595,0.05454487,95263.0,95251.0,0.07531488]
[1768715403791,0.05454487,95256.0,95250.0,0.03552805]
[1768715404001,0.04810953,95254.0,95246.0,0.09456]
[1768715404204,0.04810953,95254.0,95246.0,0.09439451]
[1768715410507,0.01742083,95258.0,95246.0,0.09439451]
[1768715410703,0.01742083,95258.0,95246.0,0.08903851]
[1768715411308,0.01742083,95258.0,95246.0,0.08368251]
[1768715418815,0.03004604,95261.0,95246.0,0.08368251]
[1768715420016,0.010501,95259.0,95246.0,0.08368251]
[1768715422518,0.010501,95257.0,95245.0,0.02381016]
[1768715428123,0.010501,95260.0,95245.0,0.02381016]
[1768715433624,0.02969275,95264.0,95245.0,0.02381016]
[1768715433806,0.010501,95262.0,95245.0,0.02381016]
[1768715434923,0.01919275,95264.0,95245.0,0.02381016]
[1768715436514,0.010501,95260.0,95245.0,0.02381016]
[1768715440314,0.010501,95260.0,95246.0,0.02368489]
[1768715443427,0.11543005,95260.0,95246.0,0.02368489]
[1768715445326,0.11543005,95260.0,95246.0,0.06142135]
[1768715445626,0.11543005,95260.0,95247.0,0.02368489]
[1768715449031,0.10492905,95260.0,95247.0,0.02368489]
[1768715450435,0.11543005,95260.0,95247.0,0.02368489]
[1768715464439,0.010501,95258.0,95247.0,0.02368489]
[1768715466345,0.10492905,95260.0,95247.0,0.02368489]
[1768715470545,0.010501,95261.0,95247.0,0.02368489]
[1768715470738,0.10492905,95260.0,95247.0,0.02368489]
[1768715472444,0.010501,95261.0,95247.0,0.02368489]
[1768715472635,0.10492905,95260.0,95247.0,0.02368489]
[1768715479656,0.010501,95259.0,95247.0,0.02368489]
[1768715485770,0.10492905,95260.0,95247.0,0.02368489]
[1768715486068,0.010501,95260.0,95247.0,0.02368489]
[1768715486269,0.11543005,95260.0,95247.0,0.02368489]
[1768715490275,0.010501,95260.0,95247.0,0.02368489]
[1768715490471,0.10492905,95260.0,95247.0,0.02368489]
[1768715502790,0.10492905,95260.0,95246.0,0.03773646]
[1768715505287,0.010501,95261.0,95246.0,0.03773646]
[1768715505288,0.03312727,95261.0,95246.0,0.03773646]
[1768715510785,0.03312727,95261.0,95244.0,0.00230986]
[1768715520804,0.03312727,95261.0,95245.0,0.03773646]
[1768715523804,0.03312727,95261.0,95246.0,0.010502]
[1768715523805,0.02262627,95261.0,95246.0,0.010502]
[1768715526605,0.02262627,95261.0,95245.0,0.03773646]
[1768715538612,0.02262627,95261.0,95245.0,0.06303129]
[1768715539910,0.010501,95260.0,95245.0,0.06303129]
[1768715541915,0.0105,95263.0,95245.0,0.07353329]
[1768715543312,0.0105,95263.0,95247.0,0.010502]
[1768715550118,0.0105,95263.0,95246.0,0.02456096]
[1768715550819,0.0105,95263.0,95247.0,0.02456096]
[1768715555315,0.010501,95260.0,95247.0,0.02456096]
[1768715560725,0.010501,95255.0,95244.0,0.04004632]
[1768715560926,0.010502,95252.0,95244.0,0.00230986]
[1768715561326,0.03407021,95255.0,95244.0,0.00230986]
[1768715563315,0.03407021,95255.0,95237.0,0.06069705]
[1768715563316,0.02356921,95255.0,95237.0,0.06069705]
[1768715563522,0.03462934,95251.0,95237.0,0.02296059]
[1768715563722,0.010502,95249.0,95233.0,0.09456]
[1768715564321,0.02407508,95248.0,95233.0,0.09456]
[1768715564626,0.010502,95246.0,95233.0,0.09456]
[1768715565123,0.02427136,95245.0,95229.0,0.04004669]
[1768715565314,0.02427136,95245.0,95229.0,0.00231023]
[1768715570130,0.00011353,95247.0,95229.0,0.00231023]
[1768715570131,0.0336574,95244.0,95229.0,0.00231023]
[1768715570331,0.010503,95241.0,95229.0,0.00231023]